[Event "44th Chess Olympiad Women 2022"]
[Site "Chennai"]
[Date "2022.08.09"]
[Round "11.21"]
[White "Mills, Morgen"]
[Black "Borda Rodas, Anapaola S."]
[Result "1/2-1/2"]
[ECO "C68"]
[WhiteElo "1993"]
[BlackElo "2183"]
[Annotator "RC"]
[PlyCount "92"]
[EventDate "2022.07.29"]
[EventType "team-tourn"]
[EventCountry "IND"]
[SourceTitle "playchess.com"]
[Source "ChessBase"]
[SourceQuality "1"]
[WhiteTeam "Canada"]
[BlackTeam "Argentina"]
[WhiteTeamCountry "CAN"]
[BlackTeamCountry "ARG"]
[TimeControl "40/5400+30:1800+30"]

1. e4 {[%emt 0:00:03]} e5 {[%emt 0:00:10]} 2. Nf3 {[%emt 0:00:05]} Nc6 {[%emt 0:00:03]} 3. Bb5 {[%emt 0:00:05]} a6 {[%emt 0:00:05]} 4. Bxc6 {[%emt 0:00:05]} dxc6 {[%emt 0:00:04]} 5. O-O {[%emt 0:00:06]} Bg4 {[%emt 0:00:02]} 6. h3 {[%emt 0:00:14]} h5 {[%emt 0:00:04]} 7. d3 {[%emt 0:00:08]} Qf6 {[%emt 0:00:10]} 8. Nbd2 {[%emt 0:00:16]} g5 {[%emt 0:00:05]} 9. Nc4 {[%emt 0:05:22]} Bxf3 {[%emt 0:00:34]} 10. Qxf3 {[%emt 0:00:07]} Qxf3 {[%emt 0:00:07]} 11. gxf3 {[%emt 0:00:04]} f6 {[%emt 0:00:06]} 12. h4 {[%emt 0:02:57]} gxh4 {[%emt 0:02:56]} 13. f4 {[%emt 0:10:49]} b5 {[%emt 0:02:17]} 14. Ne3 {[%emt 0:05:24]} exf4 {[%emt 0:02:56]} 15. Ng2 {[%emt 0:10:40]} Bd6 {[%emt 0:02:20]} 16. f3 {[%emt 0:06:51]} Ne7 {[%emt 0:06:03]} 17. Nxf4 {[%emt 0:09:45]} Kf7 {[%emt 0:04:01]} 18. Kf2 {[%emt 0:02:22]} Rag8 {[%emt 0:00:56]} 19. Be3 {[%emt 0:00:44]} Ng6 {[%emt 0:04:48]} 20. Nh3 {[%emt 0:04:50]} Ne5 {[%emt 0:05:10]} 21. Ke2 {[%emt 0:09:56]} Rg3 {[%emt 0:07:32]} 22. Nf4 {[%emt 0:01:55]} c5 {[%emt 0:04:51]} 23. Rf2 {[%emt 0:00:57]} f5 {[%emt 0:09:56]} 24. Rh1 {[%emt 0:03:42]} Ng6 {[%emt 0:05:38]} 25. Nxg6 {[%emt 0:00:56]} Rxg6 {[%emt 0:00:10]} 26. Rxh4 {[%emt 0:00:36]} Bg3 {[%emt 0:00:24]} 27. Rh3 {[%emt 0:03:50]} Bxf2 {[%emt 0:03:30]} 28. Bxf2 {[%emt 0:00:17]} Rc6 {[%emt 0:04:31]} 29. Ke3 {[%emt 0:01:11]} a5 {[%emt 0:01:24]} 30. Kf4 {[%emt 0:01:08]} fxe4 {[%emt 0:00:43]} 31. dxe4 {[%emt 0:00:17]} a4 {[%emt 0:00:54]} 32. Ke5 {[%emt 0:01:01]} b4 {[%emt 0:03:50]} 33. Rh2 {[%emt 0:01:51]} Rhh6 {[%emt 0:04:33]} 34. Be3 {[%emt 0:00:50]} Rhe6+ {[%emt 0:00:22]} 35. Kd5 {[%emt 0:00:42]} c4 {[%emt 0:01:48]} 36. e5 {[%emt 0:02:40]} c3 {[%emt 0:06:15]} 37. b3 {[%emt 0:00:38]} axb3 {[%emt 0:01:35]} 38. axb3 {[%emt 0:00:06]} Ra6 {[%emt 0:00:23]} 39. f4 {[%emt 0:04:02]} Rh6 {[%emt 0:00:58]} 40. f5 {[%emt 0:02:17]} Rh7 {[%emt 0:00:58]} 41. Bg5 {[%emt 0:13:30]} Ra5+ {[%emt 0:04:33]} 42. Ke4 {[%emt 0:00:09]} h4 {[%emt 0:02:59]} 43. e6+ {[%emt 0:01:58]} Kf8 {[%emt 0:03:27]} 44. Rh3 {[%emt 0:02:21]} Rh5 {[%emt 0:03:42]} 45. Kf4 {[%emt 0:01:03]} Rd5 {[%emt 0:00:09]} 46. Kg4 {[%emt 0:07:05]} Rh8 {[%emt 0:05:02]} 1/2-1/2

[Event "44th Chess Olympiad Women 2022"]
[Site "Chennai"]
[Date "2022.08.09"]
[Round "11.22"]
[White "Wafa, Shrook"]
[Black "Varela La Madrid, Tilsia Carolina"]
[Result "1-0"]
[ECO "C67"]
[WhiteElo "2141"]
[BlackElo "2079"]
[Annotator "NA RC"]
[PlyCount "121"]
[EventDate "2022.07.29"]
[EventType "team-tourn"]
[EventCountry "IND"]
[SourceTitle "playchess.com"]
[Source "ChessBase"]
[SourceQuality "1"]
[WhiteTeam "Egypt"]
[BlackTeam "Venezuela"]
[WhiteTeamCountry "EGY"]
[BlackTeamCountry "VEN"]
[TimeControl "40/5400+30:1800+30"]

1. e4 {[%emt 0:00:05]} e5 {[%emt 0:00:11]} 2. Nf3 {[%emt 0:00:09]} Nc6 {[%emt 0:00:07]} 3. Bb5 {[%emt 0:00:11]} Nf6 {[%emt 0:00:11]} 4. O-O {[%emt 0:00:33]} Nxe4 {[%emt 0:00:11]} 5. Re1 {[%emt 0:00:15]} Nd6 {[%emt 0:00:12]} 6. Bxc6 {[%emt 0:00:21]} dxc6 {[%emt 0:00:45]} 7. Nxe5 {[%emt 0:00:37]} Be6 {[%emt 0:04:23]} 8. d4 {[%emt 0:06:25]} Nf5 {[%emt 0:02:17]} 9. c3 {[%emt 0:02:18]} Be7 {[%emt 0:02:38]} 10. Nd2 {[%emt 0:00:51]} O-O {[%emt 0:01:05]} 11. Ne4 {[%emt 0:01:59]} Re8 {[%emt 0:28:18]} 12. Bf4 {[%emt 0:01:57]} Nh4 {[%emt 0:05:07]} 13. Bg3 {[%emt 0:04:18]} Ng6 {[%emt 0:02:10]} 14. Qf3 {[%emt 0:06:11]} Bd6 {[%emt 0:08:19]} 15. b3 {[%emt 0:03:21]} Bd5 {[%emt 0:04:02]} 16. c4 {[%emt 0:04:40]} Be6 {[%emt 0:03:00]} 17. Rad1 {[%emt 0:07:31]} Qc8 {[%emt 0:05:46]} 18. Nxd6 {[%emt 0:10:30]} cxd6 {[%emt 0:00:33]} 19. Nxg6 {[%emt 0:00:09]} hxg6 {[%emt 0:00:06]} 20. Bxd6 {[%emt 0:01:51]} Qd7 {[%emt 0:00:20]} 21. Qg3 {[%emt 0:00:28]} Rad8 {[%emt 0:03:01]} 22. Bc7 {[%emt 0:01:45]} Bg4 {[%emt 0:01:39]} 23. Bxd8 {[%emt 0:03:47]} Bxd1 {[%emt 0:00:15]} 24. Rxd1 {[%emt 0:00:35]} Qxd8 {[%emt 0:00:35]} 25. h3 {[%emt 0:00:57]} Re2 {[%emt 0:04:50]} 26. a4 {[%emt 0:00:54]} Re6 {[%emt 0:02:16]} 27. d5 {[%emt 0:01:58]} Rd6 {[%emt 0:00:24]} 28. Qe5 {[%emt 0:01:15]} f6 {[%emt 0:01:51]} 29. Qe4 {[%emt 0:01:24]} Kf7 {[%emt 0:00:24]} 30. h4 {[%emt 0:01:33]} f5 {[%emt 0:04:21]} 31. Qe5 {[%emt 0:01:31]} Qf6 {[%emt 0:00:25]} 32. Qe3 {[%emt 0:07:41]} b6 {[%emt 0:00:10]} 33. Re1 {[%emt 0:02:16]} Qd8 {[%emt 0:00:23]} 34. dxc6 {[%emt 0:00:22]} Rxc6 {[%emt 0:00:18]} 35. Qe5 {[%emt 0:02:09]} Qd7 {[%emt 0:02:05]} 36. Re3 {[%emt 0:06:54]} Re6 {[%emt 0:02:57]} 37. Qxe6+ {[%emt 0:03:56]} Qxe6 {[%emt 0:00:05]} 38. Rxe6 {[%emt 0:00:03]} Kxe6 {[%emt 0:00:04]} 39. Kf1 {[%emt 0:00:07]} Ke5 {[%emt 0:00:26]} 40. Ke2 {[%emt 0:00:09]} Kd4 {[%emt 0:00:05]} 41. Kd2 {[%emt 0:30:10]} f4 {[%emt 0:34:42]} 42. Kc2 {[%emt 0:00:56]} a6 {[%emt 0:00:38]} 43. Kd2 {[%emt 0:00:22]} a5 {[%emt 0:00:14]} 44. Kc2 {[%emt 0:00:19]} Ke4 {[%emt 0:00:31]} 45. Kc3 {[%emt 0:00:18]} f3 {[%emt 0:00:08]} 46. gxf3+ {[%emt 0:01:59]} Kxf3 {[%emt 0:00:08]} 47. b4 {[%emt 0:00:02]} axb4+ {[%emt 0:00:51]} 48. Kxb4 {[%emt 0:00:05]} Kxf2 {[%emt 0:00:13]} 49. c5 {[%emt 0:00:08]} bxc5+ {[%emt 0:00:07]} 50. Kxc5 {[%emt 0:00:04]} Kg3 {[%emt 0:00:05]} 51. a5 {[%emt 0:00:04]} Kxh4 {[%emt 0:00:10]} 52. a6 {[%emt 0:00:03]} g5 {[%emt 0:00:15]} 53. a7 {[%emt 0:00:04]} g4 {[%emt 0:00:17]} 54. a8=Q {[%emt 0:00:05]} Kg3 {[%emt 0:00:35]} 55. Kd4 {[%emt 0:00:27]} Kf2 {[%emt 0:01:14]} 56. Ke4 {[%emt 0:00:32]} g5 {[%emt 0:00:41]} 57. Qa3 {[%emt 0:00:37]} Kg2 {[%emt 0:00:46]} 58. Kf5 {[%emt 0:00:11]} g3 {[%emt 0:00:18]} 59. Kg4 {[%emt 0:00:06]} Kh2 {[%emt 0:00:21]} 60. Qxg3+ {[%emt 0:00:08]} Kh1 {[%emt 0:00:07]} 61. Qe1+ {[%emt 0:00:05]} 1-0

[Event "44th Chess Olympiad Women 2022"]
[Site "Chennai"]
[Date "2022.08.09"]
[Round "11.22"]
[White "Wafa, Shahenda"]
[Black "Rovira Contreras, Tairu Manuela"]
[Result "1-0"]
[ECO "C96"]
[WhiteElo "2115"]
[BlackElo "2036"]
[Annotator "RC"]
[PlyCount "217"]
[EventDate "2022.07.29"]
[EventType "team-tourn"]
[EventCountry "IND"]
[SourceTitle "playchess.com"]
[Source "ChessBase"]
[SourceQuality "1"]
[WhiteTeam "Egypt"]
[BlackTeam "Venezuela"]
[WhiteTeamCountry "EGY"]
[BlackTeamCountry "VEN"]
[TimeControl "40/5400+30:1800+30"]

1. e4 {[%emt 0:00:02]} e5 {[%emt 0:00:22]} 2. Nf3 {[%emt 0:00:08]} Nc6 {[%emt 0:00:10]} 3. Bb5 {[%emt 0:00:07]} a6 {[%emt 0:00:09]} 4. Ba4 {[%emt 0:00:07]} Nf6 {[%emt 0:00:05]} 5. O-O {[%emt 0:00:07]} b5 {[%emt 0:00:32]} 6. Bb3 {[%emt 0:00:09]} Be7 {[%emt 0:00:15]} 7. Re1 {[%emt 0:00:08]} O-O {[%emt 0:00:06]} 8. h3 {[%emt 0:00:09]} d6 {[%emt 0:01:10]} 9. c3 {[%emt 0:00:08]} Na5 {[%emt 0:00:05]} 10. Bc2 {[%emt 0:00:06]} c5 {[%emt 0:00:04]} 11. d4 {[%emt 0:00:07]} Nd7 {[%emt 0:00:08]} 12. Nbd2 {[%emt 0:04:11]} Re8 {[%emt 0:07:47]} 13. Nf1 {[%emt 0:03:47]} exd4 {[%emt 0:04:19]} 14. cxd4 {[%emt 0:00:07]} Nc6 {[%emt 0:01:48]} 15. Bf4 {[%emt 0:09:15]} Bb7 {[%emt 0:08:24]} 16. Ne3 {[%emt 0:13:36]} Nb4 {[%emt 0:10:55]} 17. Bb1 {[%emt 0:02:32]} Bf8 {[%emt 0:02:23]} 18. Nf5 {[%emt 0:04:33]} Nf6 {[%emt 0:02:42]} 19. d5 {[%emt 0:07:41]} a5 {[%emt 0:01:14]} 20. a3 {[%emt 0:01:22]} Na6 {[%emt 0:00:04]} 21. a4 {[%emt 0:06:38]} bxa4 {[%emt 0:03:24]} 22. Bd3 {[%emt 0:01:05]} Bc8 {[%emt 0:02:50]} 23. Qxa4 {[%emt 0:01:36]} Nb4 {[%emt 0:07:51]} 24. Bb5 {[%emt 0:10:24]} Rxe4 {[%emt 0:02:47]} 25. Rxe4 {[%emt 0:01:37]} Nxe4 {[%emt 0:04:50]} 26. Ne3 {[%emt 0:00:38]} Qf6 {[%emt 0:03:20]} 27. Bc6 {[%emt 0:13:39]} Ra6 {[%emt 0:05:44]} 28. Bh2 {[%emt 0:06:35]} Qxb2 {[%emt 0:01:48]} 29. Rf1 {[%emt 0:03:02]} Nc3 {[%emt 0:04:07]} 30. Qa1 {[%emt 0:00:13]} Qxa1 {[%emt 0:00:21]} 31. Rxa1 {[%emt 0:00:05]} Nxc6 {[%emt 0:04:22]} 32. dxc6 {[%emt 0:00:05]} Rxc6 {[%emt 0:00:12]} 33. Ra3 {[%emt 0:00:58]} Ne2+ {[%emt 0:04:53]} 34. Kf1 {[%emt 0:00:57]} Ba6 {[%emt 0:00:08]} 35. Ke1 {[%emt 0:00:24]} g6 {[%emt 0:04:03]} 36. Rxa5 {[%emt 0:00:31]} Nc1 {[%emt 0:05:07]} 37. Nd5 {[%emt 0:01:50]} Nd3+ {[%emt 0:03:16]} 38. Kd2 {[%emt 0:00:08]} Nxf2 {[%emt 0:00:38]} 39. Nf6+ {[%emt 0:00:32]} Kg7 {[%emt 0:01:42]} 40. Ne8+ {[%emt 0:00:19]} Kh8 {[%emt 0:00:11]} 41. Ke3 {[%emt 0:32:50]} Nd1+ {[%emt 0:35:25]} 42. Kd2 {[%emt 0:02:40]} Nb2 {[%emt 0:00:53]} 43. Kc3 {[%emt 0:00:35]} Nd3 {[%emt 0:00:51]} 44. Rxa6 {[%emt 0:00:30]} Rxa6 {[%emt 0:00:26]} 45. Kxd3 {[%emt 0:00:05]} Ra8 {[%emt 0:00:00]} 46. Nc7 {[%emt 0:00:00]} Ra2 {[%emt 0:00:00]} 47. g4 {[%emt 0:00:00]} c4+ {[%emt 0:00:00]} 48. Ke4 {[%emt 0:00:00]} c3 {[%emt 0:00:00]} 49. Bf4 {[%emt 0:00:00]} c2 {[%emt 0:09:40]} 50. Nd4 {[%emt 0:00:00]} Bg7 {[%emt 0:00:00]} 51. Ncb5 {[%emt 0:00:00]} Be5 {[%emt 0:00:00]} 52. Bd2 {[%emt 0:00:00]} Rb2 {[%emt 0:00:00]} 53. Kd3 {[%emt 0:00:00]} f5 {[%emt 0:00:00]} 54. gxf5 {[%emt 0:00:00]} gxf5 {[%emt 0:00:00]} 55. Nc3 {[%emt 0:00:00]} f4 {[%emt 0:00:00]} 56. Nxc2 {[%emt 0:00:00]} Kg7 {[%emt 0:00:00]} 57. Ne1 {[%emt 0:00:00]} Kg6 {[%emt 0:00:00]} 58. Nf3 {[%emt 0:00:00]} Kf5 {[%emt 0:00:00]} 59. Nh4+ {[%emt 0:00:03]} Ke6 {[%emt 0:00:00]} 60. Nf3 {[%emt 0:00:32]} h6 {[%emt 0:00:00]} 61. Ne2 {[%emt 0:01:16]} Rb3+ {[%emt 0:00:00]} 62. Bc3 {[%emt 0:00:15]} Rb8 {[%emt 0:00:00]} 63. Bd2 {[%emt 0:01:24]} Rf8 {[%emt 0:00:00]} 64. Nfd4+ {[%emt 0:00:34]} Ke7 {[%emt 0:00:00]} 65. Ke4 {[%emt 0:00:43]} Ra8 {[%emt 0:00:00]} 66. Bxf4 {[%emt 0:01:19]} Ra3 {[%emt 0:00:24]} 67. h4 {[%emt 0:02:04]} Bf6 {[%emt 0:00:54]} 68. Bxh6 {[%emt 0:00:31]} Rh3 {[%emt 0:00:37]} 69. Nf5+ {[%emt 0:01:14]} Kd7 {[%emt 0:00:30]} 70. Bg5 {[%emt 0:00:29]} Rxh4+ {[%emt 0:00:52]} 71. Bxh4 {[%emt 0:00:20]} Bxh4 {[%emt 0:00:04]} 72. Nxh4 {[%emt 0:00:05]} Kc6 {[%emt 0:00:14]} 73. Kd4 {[%emt 0:00:38]} Kb5 {[%emt 0:00:32]} 74. Nc3+ {[%emt 0:00:13]} Kc6 {[%emt 0:00:04]} 75. Nd5 {[%emt 0:00:23]} Kb5 {[%emt 0:00:13]} 76. Nf5 {[%emt 0:01:36]} Kc6 {[%emt 0:00:16]} 77. Ng7 {[%emt 0:01:09]} Kb5 {[%emt 0:00:16]} 78. Ne6 {[%emt 0:00:43]} Kc6 {[%emt 0:00:20]} 79. Kc4 {[%emt 0:00:05]} Kd7 {[%emt 0:00:06]} 80. Ng7 {[%emt 0:00:07]} Kc6 {[%emt 0:00:15]} 81. Nc3 {[%emt 0:01:52]} Kd7 {[%emt 0:00:19]} 82. Kd5 {[%emt 0:00:16]} Ke7 {[%emt 0:00:17]} 83. Nh5 {[%emt 0:00:52]} Kf7 {[%emt 0:02:00]} 84. Ne2 {[%emt 0:01:31]} Kg6 {[%emt 0:00:00]} 85. Nhf4+ {[%emt 0:00:11]} Kf5 {[%emt 0:00:00]} 86. Ne6 {[%emt 0:00:08]} Kg4 {[%emt 0:00:00]} 87. N2d4 {[%emt 0:00:09]} Kg3 {[%emt 0:00:00]} 88. Ke4 {[%emt 0:00:07]} d5+ {[%emt 0:00:00]} 89. Ke3 {[%emt 0:00:15]} Kg4 {[%emt 0:00:00]} 90. Kf2 {[%emt 0:00:58]} Kh5 {[%emt 0:00:14]} 91. Kf3 {[%emt 0:00:19]} Kg6 {[%emt 0:00:05]} 92. Kg4 {[%emt 0:00:07]} Kf6 {[%emt 0:00:07]} 93. Kf4 {[%emt 0:00:07]} Ke7 {[%emt 0:00:09]} 94. Ke5 {[%emt 0:00:12]} Kd7 {[%emt 0:00:07]} 95. Nc5+ {[%emt 0:01:09]} Kc7 {[%emt 0:00:13]} 96. Ke6 {[%emt 0:00:12]} Kb6 {[%emt 0:00:08]} 97. Ncb3 {[%emt 0:00:06]} Kc7 {[%emt 0:00:08]} 98. Ke7 {[%emt 0:00:13]} Kb6 {[%emt 0:00:31]} 99. Kd6 {[%emt 0:00:37]} Kb7 {[%emt 0:00:13]} 100. Kd7 {[%emt 0:00:14]} Kb6 {[%emt 0:00:06]} 101. Kc8 {[%emt 0:00:08]} Ka7 {[%emt 0:00:42]} 102. Kc7 {[%emt 0:00:17]} Ka6 {[%emt 0:00:15]} 103. Kc6 {[%emt 0:00:21]} Ka7 {[%emt 0:00:05]} 104. Nc5 {[%emt 0:01:15]} Kb8 {[%emt 0:00:19]} 105. Kd7 {[%emt 0:00:07]} Ka7 {[%emt 0:01:00]} 106. Kc7 {[%emt 0:00:04]} Ka8 {[%emt 0:00:06]} 107. Nc6 {[%emt 0:00:06]} d4 {[%emt 0:00:08]} 108. Na4 {[%emt 0:00:06]} d3 {[%emt 0:00:04]} 109. Nb6# {[%emt 0:00:03]} 1-0

[Event "44th Chess Olympiad Women 2022"]
[Site "Chennai"]
[Date "2022.08.09"]
[Round "11.22"]
[White "Otazo Sanchez, Annyd Gabriela"]
[Black "Moaataz, Ayah"]
[Result "1-0"]
[ECO "B13"]
[WhiteElo "1932"]
[BlackElo "2119"]
[Annotator "RC"]
[PlyCount "85"]
[EventDate "2022.07.29"]
[EventType "team-tourn"]
[EventCountry "IND"]
[SourceTitle "playchess.com"]
[Source "ChessBase"]
[SourceQuality "1"]
[WhiteTeam "Venezuela"]
[BlackTeam "Egypt"]
[WhiteTeamCountry "VEN"]
[BlackTeamCountry "EGY"]
[TimeControl "40/5400+30:1800+30"]

1. e4 {[%emt 0:00:02]} c6 {[%emt 0:00:04]} 2. d4 {[%emt 0:00:16]} d5 {[%emt 0:00:05]} 3. exd5 {[%emt 0:00:03]} cxd5 {[%emt 0:00:05]} 4. Bd3 {[%emt 0:00:14]} Qc7 {[%emt 0:00:08]} 5. c3 {[%emt 0:00:32]} Nc6 {[%emt 0:00:09]} 6. Nf3 {[%emt 0:06:09]} Bg4 {[%emt 0:00:57]} 7. Nbd2 {[%emt 0:09:33]} e6 {[%emt 0:01:14]} 8. O-O {[%emt 0:00:08]} Bd6 {[%emt 0:00:56]} 9. h3 {[%emt 0:00:04]} Bh5 {[%emt 0:00:20]} 10. Qa4 {[%emt 0:13:58]} Nf6 {[%emt 0:03:33]} 11. Re1 {[%emt 0:01:05]} O-O {[%emt 0:02:49]} 12. a3 {[%emt 0:00:50]} Bg6 {[%emt 0:02:58]} 13. Bxg6 {[%emt 0:00:24]} hxg6 {[%emt 0:00:05]} 14. c4 {[%emt 0:04:45]} dxc4 {[%emt 0:12:22]} 15. Nxc4 {[%emt 0:02:54]} Nd5 {[%emt 0:02:15]} 16. Nxd6 {[%emt 0:08:41]} Qxd6 {[%emt 0:00:06]} 17. Bd2 {[%emt 0:01:08]} Nb6 {[%emt 0:05:37]} 18. Qd1 {[%emt 0:09:11]} Rfd8 {[%emt 0:00:14]} 19. Bc3 {[%emt 0:01:07]} Qf4 {[%emt 0:03:11]} 20. Qe2 {[%emt 0:02:19]} Rd5 {[%emt 0:01:48]} 21. Qe3 {[%emt 0:06:51]} Qd6 {[%emt 0:03:18]} 22. Rad1 {[%emt 0:04:06]} Rd8 {[%emt 0:02:58]} 23. Qe4 {[%emt 0:04:34]} Qe7 {[%emt 0:09:15]} 24. Qg4 {[%emt 0:02:33]} Na4 {[%emt 0:05:58]} 25. Re3 {[%emt 0:02:29]} Rb5 {[%emt 0:03:16]} 26. Rde1 {[%emt 0:01:10]} Nxc3 {[%emt 0:09:53]} 27. bxc3 {[%emt 0:00:14]} Ra5 {[%emt 0:01:54]} 28. a4 {[%emt 0:02:50]} Qf6 {[%emt 0:05:19]} 29. h4 {[%emt 0:05:26]} Ne7 {[%emt 0:07:42]} 30. Ng5 {[%emt 0:02:53]} Nf5 {[%emt 0:00:41]} 31. Rh3 {[%emt 0:03:29]} Rxa4 {[%emt 0:02:08]} 32. Ne4 {[%emt 0:00:53]} Qe7 {[%emt 0:00:48]} 33. h5 {[%emt 0:00:12]} Nh6 {[%emt 0:01:58]} 34. Qd1 {[%emt 0:00:06]} Ra5 {[%emt 0:03:35]} 35. hxg6 {[%emt 0:00:06]} f5 {[%emt 0:02:54]} 36. Ng3 {[%emt 0:01:34]} Rad5 {[%emt 0:01:09]} 37. Qb3 {[%emt 0:01:02]} b5 {[%emt 0:00:37]} 38. Nh5 {[%emt 0:00:27]} Qg5 {[%emt 0:04:49]} 39. Rxe6 {[%emt 0:00:34]} Kh8 {[%emt 0:01:28]} 40. Qxd5 {[%emt 0:04:35]} Qc1+ {[%emt 0:00:36]} 41. Kh2 {[%emt 0:30:02]} Qg5 {[%emt 0:09:00]} 42. f4 {[%emt 0:00:00]} Ng4+ {[%emt 0:07:30]} 43. Kg1 {[%emt 0:00:00]} 1-0

[Event "44th Chess Olympiad Women 2022"]
[Site "Chennai"]
[Date "2022.08.09"]
[Round "11.22"]
[White "Perez Hernandez, Vicmary C."]
[Black "Elansary, Eman"]
[Result "1-0"]
[ECO "B05"]
[WhiteElo "1862"]
[BlackElo "1936"]
[Annotator "TA"]
[PlyCount "61"]
[EventDate "2022.07.29"]
[EventType "team-tourn"]
[EventCountry "IND"]
[SourceTitle "playchess.com"]
[Source "ChessBase"]
[SourceQuality "1"]
[WhiteTeam "Venezuela"]
[BlackTeam "Egypt"]
[WhiteTeamCountry "VEN"]
[BlackTeamCountry "EGY"]
[TimeControl "40/5400+30:1800+30"]

{[%evp 18,61,9,23,31,16,16,26,61,54,50,52,196,206,202,203,239,240,382,263,255,263,522,516,532,538,528,531,496,271,286,291,361,274,379,379,365,348,359,148,293,255,243,211,29996,29997]} 1. e4 {[%emt 0:00:33][%cal Be2e4,Be4e5][%mdl 32]} Nf6 {[%emt 0:00:06]} 2. e5 {[%emt 0:00:26]} Nd5 {[%emt 0:00:06]} 3. c4 {[%emt 0:00:10]} Nb6 {[%emt 0:00:02]} 4. d4 {[%emt 0:00:12]} d6 {[%emt 0:00:06]} 5. exd6 {[%emt 0:00:25]} cxd6 {[%emt 0:00:03]} 6. Nc3 {[%emt 0:01:14]} g6 {[%emt 0:00:17]} 7. Nf3 {[%emt 0:01:25]} Bg4 {[%emt 0:00:38]} 8. h3 {[%emt 0:02:41]} Bxf3 {[%emt 0:00:32]} 9. Qxf3 {[%emt 0:00:07]} Nc6 {[%emt 0:00:03]} 10. Be3 {[%emt 0:00:56]} Bg7 {[%emt 0:00:06] B05: Alekhine's Defence: 4 Nf3 Bg4.} 11. Rd1 {[%emt 0:00:40]} O-O {[%emt 0:03:29]} 12. Be2 {[%emt 0:00:44]} e5 {[%emt 0:05:54] White has an edge.} 13. dxe5 {[%emt 0:03:34] White is more active.} Nxe5 {[%emt 0:00:39]} 14. Qf4 {[%emt 0:00:37] Threatens to win with c5.} ({Don't play} 14. Qxb7 Nbxc4 15. Bxa7 Qc8 16. Qxc8 Rfxc8 $15) 14... Rc8 {[%emt 0:02:38] Inhibits c5.} (14... Qc7 $14) 15. c5 $1 $18 {[%emt 0:00:59]} Nbd7 {[%emt 0:04:07] [#]} 16. cxd6 $146 {[%emt 0:02:18]} ({Don't take} 16. Rxd6 $6 Qe8 $16) ({Predecessor:} 16. Rxd6 Qa5 17. b4 Qa3 18. Nd5 Rfe8 19. O-O Qxa2 20. Bb5 Rcd8 21. Bd4 Re6 22. Rxe6 fxe6 {1-0 (35) Holzschuh,P-Tischendorf,M Aachen 1988}) 16... Nc5 {[%emt 0:07:42]} 17. O-O {[%emt 0:01:08]} Qa5 {[%emt 0:09:34]} (17... Ne6 {is a better defense.} 18. Qa4 Nc6) 18. Nd5 {[%emt 0:06:27]} Ne6 {[%emt 0:01:07]} 19. Qe4 {[%emt 0:06:01] [#] Strongly threatening Ne7+.} Nc6 {[%emt 0:08:44]} (19... Kh8 20. Nf4 Nc5 21. Bxc5 Rxc5) 20. Bg4 {[%emt 0:10:56]} Rcd8 {[%emt 0:10:32]} 21. Bxe6 {[%emt 0:09:16]} fxe6 {[%emt 0:00:12]} 22. Qxe6+ {[%emt 0:00:02]} Kh8 {[%emt 0:00:14]} 23. Ne7 {[%emt 0:09:00] Inhibits Rf5.} (23. Bg5 $142) 23... Qe5 {[%emt 0:06:36]} 24. Qxe5 {[%emt 0:01:42]} Nxe5 {[%emt 0:00:44]} 25. b3 {[%emt 0:06:39]} a6 {[%emt 0:02:49]} 26. Bb6 {[%emt 0:00:48]} Rd7 {[%emt 0:00:24]} 27. f4 {[%emt 0:12:13]} Nf7 {[%emt 0:00:16]} 28. Bc7 {[%emt 0:00:10]} (28. Bc5 $18 {is more deadly.}) 28... Bb2 {[%emt 0:03:22]} (28... Nxd6 $16 29. Bxd6 Rfd8) 29. Rf2 {[%emt 0:02:50]} Ba3 {[%emt 0:00:54][%cal Rf7d6]} 30. Ba5 {[%emt 0:03:46] [#] White wants to mate with Bc3+.} Bc5 $2 {[%emt 0:01:04]} (30... Kg7 $18) 31. Bc3+ {[%emt 0:00:12] Black got outplayed after the opening.  Weighted Error Value: White=0.40/Black=0.95} 1-0

[Event "44th Chess Olympiad Women 2022"]
[Site "Chennai"]
[Date "2022.08.09"]
[Round "11.23"]
[White "Omonova, Umida"]
[Black "Hernandez Alvarez, Tania Regla"]
[Result "1/2-1/2"]
[ECO "B74"]
[WhiteElo "2195"]
[BlackElo "2058"]
[Annotator "RC"]
[PlyCount "64"]
[EventDate "2022.07.29"]
[EventType "team-tourn"]
[EventCountry "IND"]
[SourceTitle "playchess.com"]
[Source "ChessBase"]
[SourceQuality "1"]
[WhiteTeam "Uzbekistan"]
[BlackTeam "Costa Rica"]
[WhiteTeamCountry "UZB"]
[BlackTeamCountry "CRI"]
[TimeControl "40/5400+30:1800+30"]

1. e4 {[%emt 0:00:04]} c5 {[%emt 0:00:05]} 2. Nf3 {[%emt 0:00:13]} g6 {[%emt 0:00:08]} 3. d4 {[%emt 0:00:06]} cxd4 {[%emt 0:00:05]} 4. Nxd4 {[%emt 0:00:07]} Nc6 {[%emt 0:00:05]} 5. Be3 {[%emt 0:01:07]} Nf6 {[%emt 0:00:39]} 6. Nc3 {[%emt 0:02:36]} Bg7 {[%emt 0:00:11]} 7. Nb3 {[%emt 0:03:09]} O-O {[%emt 0:01:11]} 8. Be2 {[%emt 0:00:06]} a5 {[%emt 0:03:51]} 9. a4 {[%emt 0:02:23]} d6 {[%emt 0:02:20]} 10. O-O {[%emt 0:00:30]} Be6 {[%emt 0:03:42]} 11. Nd4 {[%emt 0:02:55]} Nxd4 {[%emt 0:02:47]} 12. Bxd4 {[%emt 0:00:06]} Rc8 {[%emt 0:02:33]} 13. f4 {[%emt 0:04:58]} Bc4 {[%emt 0:03:26]} 14. Bxc4 {[%emt 0:01:41]} Rxc4 {[%emt 0:00:25]} 15. Qd3 {[%emt 0:03:37]} Qc8 {[%emt 0:10:58]} 16. Rae1 {[%emt 0:08:42]} Ng4 {[%emt 0:09:32]} 17. Bxg7 {[%emt 0:00:22]} Qc5+ {[%emt 0:00:37]} 18. Kh1 {[%emt 0:00:07]} Kxg7 {[%emt 0:00:09]} 19. Re2 {[%emt 0:05:17]} Rc8 {[%emt 0:08:06]} 20. h3 {[%emt 0:00:53]} Nf6 {[%emt 0:00:22]} 21. e5 {[%emt 0:10:20]} Nh5 {[%emt 0:08:59]} 22. Ne4 {[%emt 0:05:47]} Qd4 {[%emt 0:06:50]} 23. Kh2 {[%emt 0:18:42]} dxe5 {[%emt 0:03:08]} 24. fxe5 {[%emt 0:00:04]} Qxe5+ {[%emt 0:00:44]} 25. g3 {[%emt 0:00:05]} Qxb2 {[%emt 0:04:59]} 26. c3 {[%emt 0:01:47]} Qa3 {[%emt 0:00:32]} 27. Qd5 {[%emt 0:04:05]} Nf6 {[%emt 0:08:12]} 28. Nxf6 {[%emt 0:00:09]} exf6 {[%emt 0:00:01]} 29. Rxf6 {[%emt 0:00:13]} R4c7 {[%emt 0:00:39]} 30. Ref2 {[%emt 0:00:17]} Qxc3 {[%emt 0:05:18]} 31. Rxf7+ {[%emt 0:00:31]} Rxf7 {[%emt 0:00:07]} 32. Qxf7+ {[%emt 0:00:51]} Kh6 {[%emt 0:02:54]} 1/2-1/2